Cogmind - Beta 14 @@@ ROGUE MODE // 2025.01.19 @ 22:48:17 Player: CONM Result: Destroyed by P-60 Hacker with Shock Rifle Performance ------------- Evolutions (3) 1500 Regions Visited (4) 800 Robots Destroyed (49) 245 Value Destroyed (1171) 1171 Prototype IDs (2) 40 Alien Tech Used (0) 0 Bonus (0) 0 TOTAL SCORE: 3756 Bonus ------- None Cogmind --------- Core Integrity 0/700 Matter 241/300 Energy 99/100 System Corruption 2% Temperature Cool (0) Movement Core (50) Location -7/Factory Parts ------- > --- POWER (1) -------- (None) > --- PROPULSION (4) --- (None) > --- UTILITY (6) ------ (None) > --- WEAPON (2) ------- (None) > --- INVENTORY (5) ---- Light Nuclear Core Launcher Guidance Computer Improved Field Recycling Unit (0) Peak State ------------ > --- POWER ------------ Light Nuclear Core > --- PROPULSION ------- Airjet Flight Unit > --- UTILITY ---------- Improved Cooling System Visual Processing Unit Targeting Computer Microactuators Hardened Light Armor Plating Hacking Suite > --- WEAPON ----------- Heavy Particle Gun Advanced EMP Blaster > --- INVENTORY -------- Light Deuterium Engine Improved Field Recycling Unit Gauss Cannon Advanced EMP Blaster [Rating: 32] Favorites ----------- Power Improved Ion Engine Engine Improved Ion Engine Power Core Light Nuclear Core Propulsion Light Treads Treads Light Treads Wheel Armored Wheel Hover Unit Airjet Flight Unit Flight Unit Utility Visual Processing Unit Device Heat Sink Storage Huge Storage Unit Processor Visual Processing Unit Hackware Hacking Suite Protection Hardened Light Armor Plating Weapon Particle Cannon Energy Gun Heavy Particle Gun Energy Cannon Particle Cannon Ballistic Gun Assault Rifle Ballistic Cannon Gauss Cannon Launcher Advanced EMP Blaster Build | -11 -10 -9 -8 -7 ------- Run | Yrd Mat Mat Mat Fac Slots Evolved 6 | . . 2 2 2 Power . | . . . . . Propulsion 2 | . . 1 1 . Utility 4 | . . 1 1 2 Weapon . | . . . . . Parts Attached 56 | 7 5 10 22 12 Power 6 | 1 1 . 2 2 Engine 5 | 1 1 . 2 1 Core 1 | . . . . 1 Reactor . | . . . . . Propulsion 21 | 2 1 6 11 1 Treads 16 | 2 1 4 9 . Leg . | . . . . . Wheel 2 | . . 2 . . Hover 1 | . . . . 1 Flight 2 | . . . 2 . Utility 14 | 2 1 4 2 5 Device 5 | 1 . . 1 3 Storage 3 | 1 1 1 . . Processor 4 | . . 3 1 . Hackware 1 | . . . . 1 Protection 1 | . . . . 1 Artifact . | . . . . . Weapon 15 | 2 2 . 7 4 Energy Gun 4 | . . . 3 1 Energy Cannon 3 | . 2 . 1 . Ballistic Gun 2 | 2 . . . . Ballistic Cannon 1 | . . . . 1 Launcher 5 | . . . 3 2 Special Weapon . | . . . . . Impact Weapon . | . . . . . Slashing Weapon . | . . . . . Piercing Weapon . | . . . . . Special Melee Weapon . | . . . . . Unidentified Prototypes 2 | . . . 2 . Parts Lost 20 | . . . 10 10 Power 4 | . . . 2 2 Propulsion 7 | . . . 4 3 Utility 5 | . . . 2 3 Weapon 4 | . . . 2 2 Highest Loss Streak 9 | . . . 9 9 To Critical Strikes . | . . . . . Average Slot Usage (%) 88 | . 99 99 90 57 Engine 8 | . 14 11 8 1 Treads 20 | . 28 28 20 . Wheel 4 | . . 4 9 . Flight 2 | . . . 1 9 Device 7 | . 14 4 6 7 Storage 8 | . 14 11 8 . Processor 14 | . . 17 17 12 Hackware 1 | . . . . 5 Energy Gun 2 | . . . 3 4 Energy Cannon 13 | . 12 22 12 . Ballistic Gun 2 | . 15 . . . Peak Build Rating 32 | 9 14 17 26 32 Average Rating 16 | 5 11 15 19 19 On Entrance 10 | . 9 14 17 10 Naked Turns 57 | . . . . 57 Heaviest Build 96 | 12 36 95 96 17 Greatest Support 82 | 40 40 60 82 8 Greatest Overweight (x) 27 | 1 . 7 27 4 Average Overweight (x) 1 | . . . 2 . Largest Inventory Capacity 25 | 8 15 25 25 5 Average Capacity 15 | 7 10 17 23 5 Most Carried 24 | . 12 18 24 5 Average Carried 12 | . 7 14 18 3 Final Capacity 25 | 8 15 25 5 5 Final Carried 18 | . 12 18 5 3 Class Distribution -------------------- 100% | Mutant Dominant Class ---------------- Mutant | -10/Materials Mutant | -9/Materials Mutant | -8/Materials Mutant | -7/Factory Resources | -11 -10 -9 -8 -7 ----------- Run | Yrd Mat Mat Mat Fac Matter Collected 780 | 221 183 100 158 118 Remotely . | . . . . . Salvage Created 1632 | 40 219 492 604 277 Parts 109 | 5 10 37 42 15 Haulers Intercepted 1 | . 1 . . . Recyclers Shooed 1 | . 1 . . . Parts Field Recycled . | . . . . . Retrieved Matter . | . . . . . Parts Self-Destructed . | . . . . . Prevented . | . . . . . Kills | -11 -10 -9 -8 -7 ------- Run | Yrd Mat Mat Mat Fac Combat Hostiles Destroyed 33 | . 6 11 13 3 Guns 10 | . 6 . 2 2 Cannons 21 | . . 11 9 1 AOE 2 | . . . 2 . Classes Destroyed 11 | 1 3 4 2 1 Worker 4 | . . 2 . 2 Builder 4 | . . . 2 2 Tunneler 2 | 2 . . . . Hauler 1 | . 1 . . . Recycler 1 | . . . . 1 Mechanic 1 | . . . 1 . Operator 1 | . . 1 . . Watcher 2 | . . 1 1 . Swarmer 11 | . 3 3 5 . Grunt 13 | . 3 4 3 3 Sentry 9 | . . 4 5 . Best Kill Streak 6 | 1 6 3 4 4 Combat Bots Only 6 | . 6 3 3 2 Max Kills in Single Turn 3 | 1 1 1 3 2 Gunslinging . | . . . . . Exploded 1 | . . . 1 . Melee . | . . . . . Uniques/NPCs Destroyed . | . . . . . Combat | -11 -10 -9 -8 -7 -------- Run | Yrd Mat Mat Mat Fac Hostile Shots Fired 452 | . 45 23 148 236 Missed 148 | . 12 7 36 93 Damage Taken 3554 | . 298 197 1636 1423 Core 1181 | . 38 66 367 710 Absorbed by Shields . | . . . . . Core Remaining (%) 75 | 100 84 83 33 . Volleys Fired 107 | 3 19 19 41 25 Largest 2 | 2 2 2 2 2 Hottest 136 | 40 136 136 136 91 Shots Fired 175 | 6 38 38 66 27 Gun 81 | 6 36 . 23 16 Cannon 88 | . 2 38 40 8 Launcher 6 | . . . 3 3 Special . | . . . . . Kinetic 50 | 6 36 . . 8 Thermal 119 | . 2 38 63 16 Explosive . | . . . . . Electromagnetic 6 | . . . 3 3 Robot Hit Streak 21 | 2 5 7 21 12 Robot Miss Streak 3 | 1 2 1 3 1 Penetration Max 1 | . . . . 1 Secondary Targets . | . . . . . Shots Hit Robots 116 | 4 22 22 44 24 Core Hits 60 | 3 11 14 20 12 Critical Kills . | . . . . . Critical Parts Destroyed 1 | . 1 . . . Critical Strikes 6 | . 1 . 4 1 Burn 4 | . . . 4 . Destroy 1 | . 1 . . . Blast 1 | . . . . 1 Melee Attacks . | . . . . . Impact . | . . . . . Slashing . | . . . . . Piercing . | . . . . . Sneak Attacks . | . . . . . Combat Hostiles . | . . . . . Follow-up Attacks . | . . . . . Damage Inflicted 2631 | 37 238 456 1257 643 Guns 927 | 37 218 . 402 270 Cannons 1147 | . 20 456 451 220 Explosions 556 | . . . 403 153 Melee . | . . . . . Ramming 1 | . . . 1 . Kinetic 475 | 37 218 . . 220 Thermal 1718 | . 20 456 972 270 Explosive . | . . . . . Electromagnetic 437 | . . . 284 153 Impact . | . . . . . Slashing . | . . . . . Piercing . | . . . . . Highest Corruption 2 | . . . 1 2 Average Corruption 1 | . . . 1 1 Corruption Purged . | . . . . . Corruption Blocked . | . . . . . Effects 2 | . . . . 2 Matter Fused 1 | . . . . 1 Data Loss (major) 1 | . . . . 1 Overload Shots . | . . . . . Overflow Damage 12 | . . 12 . . Projectiles 12 | . . 12 . . Explosions . | . . . . . Melee . | . . . . . Knockbacks . | . . . . . Impact . | . . . . . Kinetic . | . . . . . Secondary . | . . . . . Self-Inflicted Damage 175 | . . . 97 78 Shots 7 | . . . 4 3 Rammed 1 | . . . 1 . Targets Rammed 1 | . . . 1 . Kicked . | . . . . . Crushed . | . . . . . Highest Temperature 263 | . 78 263 210 134 Average Temperature 59 | . 9 74 64 54 Received Heat Transfer 1134 | . 66 60 702 306 Siege Activations . | . . . . . Robots Corrupted . | . . . . . Combat Hostiles . | . . . . . Parts Fried 5 | . . . 3 2 Impact Corruptions . | . . . . . Robots Melted . | . . . . . Combat Hostiles . | . . . . . Parts Melted 6 | . . 1 4 1 Heat Transferred 3406 | . 37 814 2037 518 Parts Sabotaged . | . . . . . Parts Stolen . | . . . . . Parts Stripped . | . . . . . Power Chain Reactions 4 | . . . 4 . Alert | -11 -10 -9 -8 -7 ------- Run | Yrd Mat Mat Mat Fac Peak Influence 299 | 10 153 299 274 156 Initial 71 | . 6 64 62 71 Average 145 | 4 108 169 171 111 Maximum Alert Level 1 | . . 1 1 . Low Security (%) 70 | 100 100 60 50 100 Level 1 29 | . . 39 49 . Level 2 . | . . . . . Level 3 . | . . . . . Level 4 . | . . . . . Level 5 . | . . . . . High Security . | . . . . . Max Security . | . . . . . Squads Dispatched 8 | . 1 2 2 3 Investigation 2 | . 1 1 . . Extermination 1 | . . . . 1 Reinforcement 3 | . . 1 . 2 Assault . | . . . . . Garrison 2 | . . . 2 . Intercept . | . . . . . Searches Triggered . | . . . . . Construction Impeded . | . . . . . Haulers Reinforced 1 | . . . . 1 Active Scanning Responses . | . . . . . Cargo Convoy Interrupts . | . . . . . Stealth | -11 -10 -9 -8 -7 --------- Run | Yrd Mat Mat Mat Fac Distress Signals 2 | . . . 2 . Communications Jammed . | . . . . . Distress Signals . | . . . . . Times Spotted 57 | . 8 14 24 11 Peak Tracking Total 6 | . 6 3 6 6 Tactical Retreats 3 | . . 1 1 1 Traps | -11 -10 -9 -8 -7 ------- Run | Yrd Mat Mat Mat Fac Traps Triggered 8 | . 1 1 5 1 Indirectly 1 | . . . 1 . Trap Hack Attempts . | . . . . . Triggered . | . . . . . Disarmed . | . . . . . Reprogrammed . | . . . . . Reused . | . . . . . Traps Extracted . | . . . . . Installed . | . . . . . Triggered . | . . . . . Machines | -11 -10 -9 -8 -7 ---------- Run | Yrd Mat Mat Mat Fac Machines Disabled 2 | . . . 2 . Max in Single Turn 1 | . . . 1 . Machines Repaired . | . . . . . Machines Dismantled . | . . . . . Machines Sabotaged . | . . . . . Overloaded Fab Kills . | . . . . . Hacking | -11 -10 -9 -8 -7 --------- Run | Yrd Mat Mat Mat Fac Machines Accessed 10 | . 1 2 6 1 Terminals 10 | . 1 2 6 1 Fabricators . | . . . . . Repair Stations . | . . . . . Recycling Units . | . . . . . Scanalyzers . | . . . . . Garrison Access . | . . . . . Total Hacks 26 | . 2 6 16 2 Successful 10 | . . 3 7 . Failed 16 | . 2 3 9 2 Catastrophic 2 | . . . 1 1 Database Lockouts . | . . . . . Manual 10 | . 2 2 6 . Terminals 26 | . 2 6 16 2 Fabricators . | . . . . . Repair Stations . | . . . . . Recycling Units . | . . . . . Scanalyzers . | . . . . . Garrison Access . | . . . . . Terminal Hacks 4 | . . 2 2 . Alert Level 1 | . . . 1 . Hauler Manifests 1 | . . 1 . . Zone Layout 2 | . . 1 1 . Fabricator Hacks . | . . . . . Repair Station Hacks . | . . . . . Recycling Unit Hacks . | . . . . . Scanalyzer . | . . . . . Garrison Access Hacks . | . . . . . Unauthorized Hacks 6 | . . 1 5 . Terminals 6 | . . 1 5 . Track 1 | . . . 1 . Assimilate 1 | . . . 1 . Botnet 4 | . . 1 3 . Fabricators . | . . . . . Repair Stations . | . . . . . Recycling Units . | . . . . . Scanalyzers . | . . . . . Garrison Access . | . . . . . Data Cores Recovered . | . . . . . Used . | . . . . . Hacking Detections 10 | . 1 2 6 1 Full Trace Events 1 | . 1 . . . Feedback Events . | . . . . . Feedback Blocked . | . . . . . Robot Schematics Acquired . | . . . . . Robots Built . | . . . . . Authchips . | . . . . . Time . | . . . . . Total Robot Build Rating . | . . . . . Part Schematics Acquired . | . . . . . Parts Built . | . . . . . Authchips . | . . . . . Time . | . . . . . Total Part Build Rating . | . . . . . Parts Repaired . | . . . . . Time . | . . . . . Parts Recycled . | . . . . . Recycled Matter . | . . . . . Retrieved Matter . | . . . . . Retrieved Components . | . . . . . Parts Scanalyzed . | . . . . . Part Schematics Acquired . | . . . . . Parts Damaged . | . . . . . Bothacking | -11 -10 -9 -8 -7 ------------ Run | Yrd Mat Mat Mat Fac Used RIF Installer . | . . . . . Robots Hacked . | . . . . . Non-combat . | . . . . . Combat . | . . . . . Robot Hacks Applied . | . . . . . Relay Couplers Released . | . . . . . Fabnet Peak Effective % . | . . . . . Robots Rewired . | . . . . . Allies Hacked . | . . . . . Hacks Repelled . | . . . . . Allies | -11 -10 -9 -8 -7 -------- Run | Yrd Mat Mat Mat Fac Total Allies . | . . . . . Largest Group . | . . . . . Highest-Rated Group . | . . . . . Highest-Rated Ally . | . . . . . Total Orders . | . . . . . Ally Attacks . | . . . . . Total Damage . | . . . . . Kills . | . . . . . Allies Corrupted . | . . . . . Allies Melted . | . . . . . Intel | -11 -10 -9 -8 -7 ------- Run | Yrd Mat Mat Mat Fac Robot Analysis Total . | . . . . . Derelict Logs Recovered . | . . . . . Drone Launches . | . . . . . Drone Recoveries . | . . . . . Exploration | -11 -10 -9 -8 -7 ------------- Run | Yrd Mat Mat Mat Fac Turns Passed 2575 | 117 331 802 893 432 Spaces Moved 1489 | 72 161 410 461 385 Core 282 | 20 . . 9 253 Treads 638 | 52 161 311 114 . Legs . | . . . . . Wheels 404 | . . 99 305 . Hover 120 | . . . . 120 Flight 45 | . . . 33 12 Fastest Speed 34 | 50 160 135 34 34 Average Speed 137 | 137 160 154 154 89 Slowest Speed 1400 | 160 160 240 1400 250 Overloaded Moves . | . . . . . Propulsion Burnouts . | . . . . . Robots Hopped 1 | . . . 1 . Cave-ins Triggered . | . . . . . Exploration Rate (%) 21 | 5 22 28 41 10 Regions Visited 4 Branch Regions . Pre-discovered Areas . | . . . . . Known Exits Taken . | . . . . . Unknown Exits Taken 4 | 1 1 1 1 . Scrap Searched . | . . . . . Spaces Dug . | . . . . . Terrain Destroyed 12 | . . . 10 2 Melee . | . . . . . Projectile 2 | . . . . 2 AOE 10 | . . . 10 . Terrain Rammed . | . . . . . Walls Destroyed . | . . . . . Machines Disabled . | . . . . . Actions | -11 -10 -9 -8 -7 --------- Run | Yrd Mat Mat Mat Fac Total 1824 | 82 200 542 557 443 Wait 115 | 1 1 87 12 14 Move 1483 | 71 160 409 458 385 Hop 1 | . . . 1 . Pick Up 37 | . 11 9 13 4 Fast Attach 25 | 7 2 3 9 4 Attach 21 | . . 3 11 7 Detach 4 | . . . 3 1 Swap 10 | . 3 4 2 1 Drop 20 | . 4 8 6 2 Fire 107 | 3 19 19 41 25 Melee . | . . . . . Ram 1 | . . . 1 . Kick . | . . . . . Crush . | . . . . . Escape Stasis . | . . . . . Rewire . | . . . . . Trap . | . . . . . Miscellaneous . | . . . . . Route ------- -11/Scrapyard -10/Materials -9/Materials -8/Materials -7/Factory History --------- Turn | Location | Event 5 | -11/Scrapyard | Discovered new exit (range 15) 118 | -11/Scrapyard | Entered Materials 322 | -10/Materials | Build established: Mutant 405 | -10/Materials | Discovered new exit (range 4) 449 | -10/Materials | Entered another Materials area 449 | -9/Materials | Evolved 2 slots: Propulsion x1, Utility x1 1038 | -9/Materials | Discovered new exit (range 8) 1251 | -9/Materials | Entered another Materials area 1251 | -8/Materials | Evolved 2 slots: Propulsion x1, Utility x1 1666 | -8/Materials | Garrison activated, responded to threat 2002 | -8/Materials | Garrison activated, responded to threat 2013 | -8/Materials | Discovered new exit (range 18) 2046 | -8/Materials | Core integrity fell below 50% 2086 | -8/Materials | Lost 9 parts (2p3n2u2w) 2144 | -8/Materials | Entered Factory 2144 | -7/Factory | Evolved 2 slots: Utility x2 2467 | -7/Factory | Core integrity fell below 50% 2492 | -7/Factory | Lost 9 parts (2p3n2u2w) 2504 | -7/Factory | Core integrity fell below 20% 2576 | -7/Factory | Destroyed by P-60 Hacker with Shock Rifle Last Messages --------------- 02473_ K-01 Serf collects debris. 02476_ Fusion Modulator explodes. 02476_ G-47 Trooper destroyed. 02476_ Fusion Modulator explodes. 02476_ G-47 Trooper destroyed. 02476_ Fusion Modulator explodes. 02476_ Terminal disabled. 02476_ Fusion Modulator explodes. 02476_ W-25 Informer destroyed. 02476_ K-01 Serf collects debris. 02503_ Imp. Cooling System destroyed. 02504_ System corrupted: Substantial component data lost. 02519_ Triggered Blade Trap. 02519_ Massive razor-sharp blades shoot up from within the floor. 02519_ Targeting Computer severed. 02519_ Visual Processing Unit severed. 02519_ Hacking Suite severed. 02547_ Acquired Launcher Guidance Computer. 02563_ System corrupted: Matter fused (-7). 02576_ Assembly Bed disabled. Map ----- +----------------------------------------------------+ | ?????????# """""" #??????????????????????????? | | ?????????# """""" #??????????????????????????? | | ?????????# """""" #??????????????????????????? | | ?????????# #??????????????????????????? | | ?????????# """""" #??????????????????????????? | | ?????????# """""" #??????????????????????????? | | ?????????# """""" #??????????????????????????? | | ?????????# """""" #??????????????????????????? | | ?????????# #??????????????????????????? | | ?????????# #??????????????????????????? | | ?????????#######+###################+????????????? | | ?????????????# ! ???????????? | | ?????????????# ??????????? | | ?????????????# """""" """""" ??????????? | | ?????????????# """"""p"""""" ?????????? | | ############## """""" """""" ????????????? | | # # """""" """"" #???????????????? | | # ! # Y #???????????????? | | # # " " == #???????????????? | | # # "R" == #???????????????? | | # """ """ # """ = #???????????????? | | # """ """ + #???????????????? | | # """ """ # #???????????????? | | # # ########???????????????? | | # """ """ # ^ ##############?????????? | | # """ """ # @# #?????????? | | # """ """ # # """ """ #?????????? | | # # # """ """ #?????????? | | ############## + """ """ #?????????? | | ?????????????# # #?????????? | | ?????????????####+### ##############?????????? | | ????????????????????# ########???????????????? | | ????????????????????# #???????????????? | | ????????????????????# #???????????????? | | ????????????????????# #???????????????? | | ????????????????????# +???????????????? | | ????????????????????# #???????????????? | | ???????????????#########+### #???????????????? | | ???????????????# # #???????????????? | | ???????????????# """"""" # #???????????????? | | ???????????????# """"""" #? #???????????????? | | ???????????????# """"""" #?? #???????????????? | | ???????????????# """"""" #?? #???????????????? | | ???????????????# #? #???????????????? | | ???????????????# # #???????????????? | | ??????#################+#### #???????????????? | | ??????# ##??????????????? | | ??????# "#??????????????? | | ??????+ "#??????????????? | | ??????# % "#??????????????? | +----------------------------------------------------+ Best States ------------- Heat Dissipation 61 Energy Generation 14 Energy Capacity 265 Matter Stores 300 Matter Capacity 300 Sight Range 18 Terrain Scan Range 16 Terrain Scan Density 85 Armor Coverage 150 Melee Speed Boost 20 Evasion (%) 63 Targeting Accuracy 5 Recoil Reduction 4 Offensive Hacking 10 Item Schematics ----------------- None Robot Schematics ------------------ None Fabricated ------------ Nothing Alien Tech Used ----------------- None Achievements -------------- None Challenges ------------ None Game ------ Seed SapperAntimissileCharger Manual? 0 Play Time 00:38:59 Cumulative 109.8 hours Start 2025.01.19 @ 17:00:10 End 2025.01.19 @ 22:48:17 Sessions 3 Manual Loads 0 Difficulty Rogue Special Mode None Game No. 133 Rogue 133 Adventurer 0 Explorer 0 Win Type - Total 0 Types 0/0/0/0/0/0/0/0/0 Lore% 46 Gallery% 44 Achievement% 41 Wizard Run 0 Options --------- Layout 0 ASCII 0 Keyboard 0 Movement Arrows Keybinds 0 Fullscreen 2 Font 18/SmallcapsGlow Map View 76x50 Zoom Use 52% Tactical HUD 1 Map Filters NONE Filters NONE Steam X RUN: fd75102e-3608-496c-8d74-24a013776f97